Cogmind - Beta 9.6 @@@ ROGUE MODE // 2020.07.21 @ 16:05:15 Player: Mr.Manatee Result: Destroyed by YI-UF0 with YI-UF0's Doublenader Performance ------------- Evolutions (1) 500 Regions Visited (3) 600 Robots Destroyed (5) 25 Value Destroyed (85) 85 Prototype IDs (6) 120 Alien Tech Used (0) 0 Bonus (285) 285 TOTAL SCORE: 1615 Bonus ------- Pacifist 200 Follower Combat Kills 85 Cogmind --------- Core Integrity 0/400 Matter 300/300 Energy 100/100 System Corruption 0% Temperature Cool (0) Movement Core (50) Location -9/Mines Parts ------- > --- POWER (2) -------- (None) > --- PROPULSION (3) --- (None) > --- UTILITY (2) ------ (None) > --- WEAPON (2) ------- (None) > --- INVENTORY (4) ---- Ion Engine Light Nuclear Core Blade Trap Blade Trap Peak State ------------ > --- POWER ------------ (None) > --- PROPULSION ------- (None) > --- UTILITY ---------- Transmission Jammer > --- WEAPON ----------- Beam Rifle Assault Rifle > --- INVENTORY -------- Ion Engine Light Ion Engine [Rating: 6] Favorites ----------- Power Light Ion Engine Engine Light Ion Engine Propulsion Flight Unit Flight Unit Flight Unit Utility Transmission Jammer Device Transmission Jammer Weapon Light Assault Rifle Energy Gun Beam Rifle Ballistic Gun Light Assault Rifle Build | -11 -10 -9 -9 ------- Run | Scr Mat Mat Min Slots Evolved 2 | . . 2 . Power 1 | . . 1 . Propulsion 1 | . . 1 . Utility . | . . . . Weapon . | . . . . Parts Attached 9 | 2 . 7 . Power 2 | . . 2 . Engine 2 | . . 2 . Core . | . . . . Reactor . | . . . . Propulsion 2 | . . 2 . Treads . | . . . . Leg . | . . . . Wheel . | . . . . Hover . | . . . . Flight 2 | . . 2 . Utility 1 | . . 1 . Device 1 | . . 1 . Storage . | . . . . Processor . | . . . . Hackware . | . . . . Protection . | . . . . Artifact . | . . . . Weapon 4 | 2 . 2 . Energy Gun 1 | . . 1 . Energy Cannon . | . . . . Ballistic Gun 3 | 2 . 1 . Ballistic Cannon . | . . . . Launcher . | . . . . Special Weapon . | . . . . Impact Weapon . | . . . . Slashing Weapon . | . . . . Piercing Weapon . | . . . . Special Melee Weapon . | . . . . Unidentified Prototypes . | . . . . Parts Lost 7 | . . 5 2 Power 1 | . . 1 . Propulsion 2 | . . 1 1 Utility 1 | . . . 1 Weapon 3 | . . 3 . Highest Loss Streak 4 | . . 4 2 Average Slot Usage (%) 24 | . 28 27 20 Flight 5 | . . 1 10 Device 8 | . . 9 10 Ballistic Gun 9 | . 28 11 . Naked Turns 2 | . . . 2 Heaviest Build 9 | 3 3 9 1 Greatest Support 4 | 3 3 4 4 Greatest Overweight (x) 2 | . . 2 . Average Overweight (x) . | . . . . Largest Inventory Capacity 4 | 4 4 4 4 Average Capacity 4 | 4 4 4 4 Most Carried 4 | 2 2 4 4 Average Carried 2 | 1 2 2 2 Final Capacity 4 | 4 4 4 4 Final Carried 4 | 2 2 1 4 Class Distribution -------------------- 100% | Mutant Dominant Class ---------------- Mutant | -10/Materials Mutant | -9/Materials Mutant | -9/Mines Resources | -11 -10 -9 -9 ----------- Run | Scr Mat Mat Min Matter Collected 301 | 164 . 122 15 Remotely . | . . . . Salvage Created 122 | . . 122 . Parts 12 | . . 12 . Haulers Intercepted . | . . . . Recyclers Shooed . | . . . . Parts Field Recycled . | . . . . Retrieved Matter . | . . . . Parts Self-Destructed . | . . . . Prevented . | . . . . Kills | -11 -10 -9 -9 ------- Run | Scr Mat Mat Min Combat Hostiles Destroyed 5 | . . 5 . Guns 5 | . . 5 . Classes Destroyed 2 | . . 2 . Swarmer 4 | . . 4 . Sentry 1 | . . 1 . Best Kill Streak 4 | . . 4 . Combat Bots Only 4 | . . 4 . Max Kills in Single Turn 1 | . . 1 . Gunslinging . | . . . . Exploded . | . . . . Melee . | . . . . Uniques/NPCs Destroyed . | . . . . Combat | -11 -10 -9 -9 -------- Run | Scr Mat Mat Min Damage Taken 778 | . 10 530 238 Core 416 | . . 188 228 Absorbed by Shields . | . . . . Core Remaining (%) 100 | 100 100 . . Volleys Fired 12 | . . 12 . Largest 2 | . . 2 . Hottest 76 | . . 76 . Shots Fired 20 | . . 20 . Gun 20 | . . 20 . Cannon . | . . . . Launcher . | . . . . Special . | . . . . Kinetic 14 | . . 14 . Thermal 6 | . . 6 . Explosive . | . . . . Electromagnetic . | . . . . Robot Hit Streak 7 | . . 7 . Robot Miss Streak 2 | . . 2 . Penetration Max . | . . . . Secondary Targets . | . . . . Shots Hit Robots 13 | . . 13 . Core Hits 8 | . . 8 . Critical Hits . | . . . . Critical Kills . | . . . . Critical Parts Destroyed . | . . . . Melee Attacks . | . . . . Impact . | . . . . Slashing . | . . . . Piercing . | . . . . Sneak Attacks . | . . . . Combat Hostiles . | . . . . Follow-up Attacks . | . . . . Damage Inflicted 187 | . . 187 . Guns 187 | . . 187 . Cannons . | . . . . Explosions . | . . . . Melee . | . . . . Ramming . | . . . . Kinetic 114 | . . 114 . Thermal 73 | . . 73 . Explosive . | . . . . Electromagnetic . | . . . . Impact . | . . . . Slashing . | . . . . Piercing . | . . . . Highest Corruption . | . . . . Average Corruption . | . . . . Corruption Purged . | . . . . Overload Shots . | . . . . Overflow Damage . | . . . . Projectiles . | . . . . Explosions . | . . . . Melee . | . . . . Knockbacks . | . . . . Impact . | . . . . Kinetic . | . . . . Secondary . | . . . . Self-Inflicted Damage . | . . . . Shots . | . . . . Rammed . | . . . . Targets Rammed . | . . . . Kicked . | . . . . Crushed . | . . . . Highest Temperature . | . . . . Average Temperature . | . . . . Received Heat Transfer 174 | . 6 159 9 Siege Activations . | . . . . Robots Corrupted . | . . . . Combat Hostiles . | . . . . Parts Fried . | . . . . Impact Corruptions . | . . . . Robots Melted . | . . . . Combat Hostiles . | . . . . Parts Melted . | . . . . Heat Transferred 185 | . . 185 . Parts Sabotaged . | . . . . Parts Stolen . | . . . . Parts Stripped . | . . . . Power Chain Reactions . | . . . . Missiles Intercepted . | . . . . Alert | -11 -10 -9 -9 ------- Run | Scr Mat Mat Min Peak Influence 196 | . 49 196 127 Average Influence 86 | . 26 104 106 Maximum Alert Level . | . . . . Low Security (%) 100 | 100 100 100 100 Level 1 . | . . . . Level 2 . | . . . . Level 3 . | . . . . Level 4 . | . . . . Level 5 . | . . . . High Security . | . . . . Max Security . | . . . . Squads Dispatched 2 | . 1 1 . Investigation 2 | . 1 1 . Extermination . | . . . . Reinforcement . | . . . . Assault . | . . . . Garrison . | . . . . Intercept . | . . . . Construction Impeded . | . . . . Haulers Reinforced . | . . . . Stealth | -11 -10 -9 -9 --------- Run | Scr Mat Mat Min Distress Signals 1 | . . 1 . Communications Jammed 2 | . . 2 . Distress Signals 2 | . . 2 . Times Spotted 21 | . 3 11 7 Peak Tracking Total 9 | . 4 9 3 Tactical Retreats 3 | . . 2 1 Traps | -11 -10 -9 -9 ------- Run | Scr Mat Mat Min Traps Triggered . | . . . . Indirectly . | . . . . Trap Hack Attempts . | . . . . Triggered . | . . . . Disarmed . | . . . . Reprogrammed . | . . . . Reused . | . . . . Traps Extracted . | . . . . Installed . | . . . . Triggered . | . . . . Machines | -11 -10 -9 -9 ---------- Run | Scr Mat Mat Min Machines Disabled . | . . . . Max in Single Turn . | . . . . Machines Sabotaged . | . . . . Garrisons Compromised . | . . . . Overloaded Fab Kills . | . . . . Fab Network Shutdowns . | . . . . Hacking | -11 -10 -9 -9 --------- Run | Scr Mat Mat Min Machines Accessed 7 | . 4 3 . Terminals 7 | . 4 3 . Fabricators . | . . . . Repair Stations . | . . . . Recycling Units . | . . . . Scanalyzers . | . . . . Garrison Access . | . . . . Total Hacks 27 | . 19 8 . Successful 17 | . 13 4 . Failed 10 | . 6 4 . Catastrophic 3 | . 1 2 . Database Lockouts . | . . . . Manual 24 | . 16 8 . Terminals 27 | . 19 8 . Fabricators . | . . . . Repair Stations . | . . . . Recycling Units . | . . . . Scanalyzers . | . . . . Garrison Access . | . . . . Terminal Hacks 10 | . 8 2 . Record 1 | . 1 . . Prototype ID Bank 5 | . 5 . . Emergency Access Points 2 | . 1 1 . Terminal Index 2 | . 1 1 . Fabricator Hacks . | . . . . Repair Station Hacks . | . . . . Recycling Unit Hacks . | . . . . Scanalyzer . | . . . . Garrison Access Hacks . | . . . . Unauthorized Hacks 7 | . 5 2 . Terminals 7 | . 5 2 . Track 2 | . 2 . . Botnet 3 | . 2 1 . Operators 1 | . 1 . . Search 1 | . . 1 . Fabricators . | . . . . Repair Stations . | . . . . Recycling Units . | . . . . Scanalyzers . | . . . . Garrison Access . | . . . . Data Cores Recovered . | . . . . Used . | . . . . Hacking Detections 6 | . 4 2 . Full Trace Events 2 | . 1 1 . Feedback Events . | . . . . Feedback Blocked . | . . . . Robot Schematics Acquired . | . . . . Robots Built . | . . . . Matter . | . . . . Time . | . . . . Total Robot Build Rating . | . . . . Part Schematics Acquired . | . . . . Parts Built . | . . . . Matter . | . . . . Time . | . . . . Total Part Build Rating . | . . . . Parts Repaired . | . . . . Time . | . . . . Parts Recycled . | . . . . Recycled Matter . | . . . . Retrieved Matter . | . . . . Retrieved Components . | . . . . Parts Scanalyzed . | . . . . Part Schematics Acquired . | . . . . Parts Damaged . | . . . . Bothacking | -11 -10 -9 -9 ------------ Run | Scr Mat Mat Min Used RIF Installer . | . . . . Robots Hacked . | . . . . Non-combat . | . . . . Combat . | . . . . Robot Hacks Applied . | . . . . Relay Couplers Released . | . . . . Robots Rewired . | . . . . Allies Hacked . | . . . . Hacks Repelled . | . . . . Allies | -11 -10 -9 -9 -------- Run | Scr Mat Mat Min Total Allies 3 | . . . 3 Largest Group 3 | . . . 3 Highest-Rated Group 40 | . . . 40 Highest-Rated Ally 16 | . . . 16 Total Orders . | . . . . Ally Attacks 16 | . . . 16 Total Damage 177 | . . . 177 Kills 3 | . . . 3 Allies Corrupted . | . . . . Allies Melted . | . . . . Intel | -11 -10 -9 -9 ------- Run | Scr Mat Mat Min Robot Analysis Total . | . . . . Derelict Logs Recovered 1 | . . . 1 Drone Launches . | . . . . Drone Recoveries . | . . . . Exploration | -11 -10 -9 -9 ------------- Run | Scr Mat Mat Min Turns Passed 450 | 21 82 154 193 Spaces Moved 854 | 32 156 200 466 Core 349 | 32 156 157 4 Treads . | . . . . Legs . | . . . . Wheels . | . . . . Hover . | . . . . Flight 505 | . . 43 462 Fastest Speed 40 | 50 50 40 40 Average Speed 45 | 50 50 53 40 Slowest Speed 150 | 50 50 150 50 Overloaded Moves . | . . . . Propulsion Burnouts . | . . . . Robots Hopped 4 | . . 1 3 Cave-ins Triggered . | . . . . Exploration Rate (%) 38 | 4 43 28 77 Regions Visited 3 Branch Regions 1 Pre-discovered Areas 1 | . . . 1 Known Exits Taken . | . . . . Unknown Exits Taken 3 | 1 1 1 . Scrap Searched 2 | . . . 2 Spaces Dug . | . . . . Terrain Destroyed . | . . . . Melee . | . . . . Projectile . | . . . . AOE . | . . . . Actions | -11 -10 -9 -9 --------- Run | Scr Mat Mat Min Total 887 | 35 159 224 469 Wait 10 | . 4 5 1 Move 843 | 31 155 197 460 Hop 4 | . . 1 3 Pick Up 7 | 2 . 1 4 Fast Attach 5 | 2 . 3 . Attach 3 | . . 3 . Detach 1 | . . 1 . Swap 1 | . . 1 . Drop 1 | . . . 1 Fire 12 | . . 12 . Melee . | . . . . Ram . | . . . . Kick . | . . . . Crush . | . . . . Escape Stasis . | . . . . Rewire . | . . . . Trap . | . . . . Miscellaneous . | . . . . Route ------- -11/Scrapyard -10/Materials (discovered 2 exits: *Mat / [*Min]) -9/Materials -9/Mines History --------- Turn | Location | Event 12 | -11/Scrapyard | Discovered new exit (range 16) 22 | -11/Scrapyard | Entered Materials 52 | -10/Materials | Discovered new exit (range 7) 96 | -10/Materials | Discovered new exit (range 10) 104 | -10/Materials | Entered another Materials area 104 | -9/Materials | Evolved 2 slots: Power x1, Propulsion x1 250 | -9/Materials | Discovered new exit (range 12) 258 | -9/Materials | Entered Mines 276 | -9/Mines | Core integrity fell below 50% 284 | -9/Mines | Lost 4 parts (1p1n2w) 293 | -9/Mines | Assisted by bots powering up and referring to "LRC-V3" 318 | -9/Mines | Build established: Mutant 332 | -9/Mines | Found a hidden stash of uninstalled traps 408 | -9/Mines | Learned location of Zion (-6) 450 | -9/Mines | Core integrity fell below 20% 451 | -9/Mines | Destroyed by YI-UF0 with YI-UF0's Doublenader Last Messages --------------- 00326_ Acquired Ion Engine. 00332_ A stash of uninstalled traps is hidden here! 00337_ Searching scrap... 00337_ Found 32 Matter. 00337_ Found 14 Matter. 00337_ Found Flail. 00337_ Found Grenade Launcher. 00352_ Acquired Blade Trap. 00353_ Dropped Ion Engine. 00354_ Acquired Blade Trap. 00408_ Acquired derelict log, extracted data. World map updated: -6/Zion. 00424_ K-01 Serf collects debris. 00445_ YI-UF0: "BADABOOM!" 00445_ U-05 Engineer destroyed. 00446_ K-01 Serf collects debris. 00447_ The unstable cave ceiling collapses. 00448_ YI-UF0 mumbles something. 00449_ Transmission Jammer destroyed. 00449_ Flight Unit destroyed. Map ----- +----------------------------------------------------+ | ??# #??## %## #??## #?????????????????? | | ??# ##??## ##### ####& #??????????????????? | | ??## ##??# ##?# * & #???????????????????? | | ???## ##?#%%! ### #####& ##???????????????????? | | ?#### #?# #???####????????????????????? | | ?# #?# #???????????????????????????? | | ?# ##?# ######???????????????????????????? | | ?# ##### % ##??????????????????????????? | | ?#### ##?????????????????????????? | | ???# #?????????????????????????? | | ???# #### #?????????????????????????? | | ???## ##??# ##?????????????????????????? | | ????####???## ##??????????????????????????? | | ????????????## ##???????????????????????????? | | ????????????## #????????????????????????????? | | ???????????## ###??????????????????????????? | | ??????????## #??????????????????????????? | | ??????##### # ! #??????????????????????????? | | ?????## ! ###! #?#????????????????????????? | | ?????# ###?# ## #????????????????????????? | | ?????# ###### #????????????????????????? | | ?????## #### # ###????????????????????????? | | ??????#### ####??#########??????????????? | | ????????# #= ?# #??????????????? | | ????????# ## """ #??????????????? | | ?????# g @ """ #??????????????? | | ?????# """ #??????????????? | | ?????# ### #??????????????? | | ?????# ####?# """ #??????????????? | | ?????# #????# """ #??????????????? | | ?????### # #######????# """ #??????????????? | | ???????# # ???????????? #??????????????? | | ???????#### ##????????????######?#??????????????? | | ??????????###????????????????????????????????????? | | ?????????????????????????????????????????????????? | | | | | | | | | | | | | | | | | | | | | | | | | | | | | | | +----------------------------------------------------+ Best States ------------- Heat Dissipation 28 Energy Generation 10 Energy Capacity 250 Matter Stores 300 Matter Capacity 300 Sight Range 16 Terrain Scan Density 10 Jamming Range 8 Evasion (%) 62 Item Schematics ----------------- None Robot Schematics ------------------ None Fabricated ------------ Nothing Alien Tech Used ----------------- None Achievements -------------- None Challenges ------------ None Game ------ Seed HardcellBoreStorm Manual? 0 Play Time 00:11:16 Cumulative 57.7 hours Start 2020.07.21 @ 15:56:46 End 2020.07.21 @ 16:05:15 Sessions 1 Manual Loads 0 Difficulty Rogue Special Mode None Game No. 76 Rogue 76 Adventurer 0 Explorer 0 Win Type - Total 0 Types 0/0/0/0/0/0/0 Lore% 41 Gallery% 54 Achievement% 41 Wizard Run 0 Options --------- ASCII 0 Keyboard 1 Movement Numpad Keybinds 0 Fullscreen 2 Font 18/SmallcapsGlow Map View 76x50 Tactical HUD 1 Map Filters NONE Filters NONE Steam 1 RUN: 07ee9458-fa03-4e98-b17a-5097a999393b